Workbook

Sheet Registro
A1: TITULO | B1: ESTUDIO DE IMPACTO AMBIENTAL: PROCEDIMIENTO Y HERRAMIENTAS
A3: AUTORES | B3: ROBERTO PECHE GONZALEZ
B4: DOLORES ENCINAS MALAGON
B5: ZURIÑE GOMEZ DE BALUGERA LOPEZ DE ALDA
B6: MARIA ARRITOKIETA ORTUZAR IRAGORRI
A8: ISBN: | B8: 978-84-613-9696-2

Sheet 45-47
A1: nº de indicador: | B1: 45 | C1: función de transformación: | D1: CA=(0,08*I^2)+ 0,8*I+2 | E1: (-5)<I<-2,5
A2: Indicador: | B2: Tª media en el ambito de referencia | D2: CA=(-0,08*I^2)+1 | E2: (-2,5)<I<2,5
A3: fórmula del indicador | B3: tª media - tª media sin proyecto | D3: CA=(0,08*I^2)-0,8*I+2 | E3: 2,5<I<5
A4: unidad del indicador:
A5: rango de valores del indicador: | B5: -5 - 5 | C5: valor del indicador | D5: 3
A6: Tipo de indicador | B6: 2 (T=0,25) | C6: calidad ambiental | D6: =IF(D5<-5,"valor del indicador fuera de rango",IF(D5<=-2.5,(0.08*D5^2)+(0.8*D5)+2,IF(D5<=2.5,(-0.08*D5^2)+1,IF(D5<=5,(0.08*D5^2)-(0.8*D5)+2,"valor del indicador fuera rango")))) -> 0.320
A7: valor del indicador | B7: calidad ambiental | C7: representación de la función de transformación
A8: -5.0 | B8: =(0.08*A8^2)+ 0.8*A8+2 -> 0.000
A9: -4.5 | B9: 0.020
A10: -4.0 | B10: 0.080
A11: -3.5 | B11: 0.180
A12: -3.0 | B12: 0.320
A13: -2.5 | B13: 0.500
A14: -2.0 | B14: =(-0.08*A14^2)+1 -> 0.680
A15: -1.5 | B15: 0.820
A16: -1.0 | B16: 0.920
A17: -0.5 | B17: 0.980
A18: 0.0 | B18: 1.000
A19: 0.5 | B19: 0.980
A20: 1.0 | B20: 0.920
A21: 3.0 | B21: =(0.08*A21^2)-0.8*A21+2 -> 0.320
A22: 3.5 | B22: =(0.08*A22^2)-0.8*A22+2 -> 0.180
A23: 4.0 | B23: =(0.08*A23^2)-0.8*A23+2 -> 0.080
A24: 4.5 | B24: =(0.08*A24^2)-0.8*A24+2 -> 0.020
A25: 5.0 | B25: =(0.08*A25^2)-0.8*A25+2 -> 0.000
A28: nº de indicador: | B28: 46 | C28: función de transformación: | D28: CA=(0,08*I^2)+ 0,8*I+2 | E28: (-5)<I<-2,5
A29: Indicador: | B29: Tª media ponderada por la superficie de zonas homogéneas | D29: CA=(-0,08*I^2)+1 | E29: (-2,5)<I<2,5
A30: fórmula del indicador | D30: CA=(0,08*I^2)-0,8*I+2 | E30: 2,5<I<5
A31: unidad del indicador:
A32: rango de valores del indicador: | B32: -5 - 5 | C32: valor del indicador | D32: 4
A33: Tipo de indicador | B33: 2 (T=0,25) | C33: calidad ambiental | D33: =IF(D32<-5,"valor del indicador fuera de rango",IF(D32<=-2.5,(0.08*D32^2)+(0.8*D32)+2,IF(D32<=2.5,(-0.08*D32^2)+1,IF(D32<=5,(0.08*D32^2)-(0.8*D32)+2,"valor del indicador fuera rango")))) -> 0.080
A34: valor del indicador | B34: calidad ambiental | C34: representación de la función de transformación
A35: -5.0 | B35: =(0.08*A35^2)+ 0.8*A35+2 -> 0.000
A36: -4.5 | B36: 0.020
A37: -4.0 | B37: 0.080
A38: -3.5 | B38: 0.180
A39: -3.0 | B39: 0.320
A40: -2.5 | B40: 0.500
A41: -2.0 | B41: =(-0.08*A41^2)+1 -> 0.680
A42: -1.5 | B42: 0.820
A43: -1.0 | B43: 0.920
A44: -0.5 | B44: 0.980
A45: 0.0 | B45: 1.000
A46: 0.5 | B46: 0.980
A47: 1.0 | B47: 0.920
A48: 2.5 | B48: 0.500
A49: 3.0 | B49: =(0.08*A49^2)-0.8*A49+2 -> 0.320
A50: 3.5 | B50: =(0.08*A50^2)-0.8*A50+2 -> 0.180
A51: 4.0 | B51: =(0.08*A51^2)-0.8*A51+2 -> 0.080
A52: 4.5 | B52: =(0.08*A52^2)-0.8*A52+2 -> 0.020
A53: 5.0 | B53: =(0.08*A53^2)-0.8*A53+2 -> 0.000
A56: nº de indicador: | B56: 47 | C56: función de transformación: | D56: CA=(0,08*I^2)+ 0,8*I+2 | E56: (-5)<I<-2,5
A57: Indicador: | B57: Tº media ponderada por la población residente en las diferentes zonas | D57: CA=(-0,08*I^2)+1 | E57: (-2,5)<I<2,5
A58: fórmula del indicador | D58: CA=(0,08*I^2)-0,8*I+2 | E58: 2,5<I<5
A59: unidad del indicador:
A60: rango de valores del indicador: | B60: -5 - 5 | C60: valor del indicador | D60: 3
A61: Tipo de indicador | B61: 2 (T=0,25) | C61: calidad ambiental | D61: =IF(D60<-5,"valor del indicador fuera de rango",IF(D60<=-2.5,(0.08*D60^2)+(0.8*D60)+2,IF(D60<=2.5,(-0.08*D60^2)+1,IF(D60<=5,(0.08*D60^2)-(0.8*D60)+2,"valor del indicador fuera rango")))) -> 0.320
A62: valor del indicador | B62: calidad ambiental | C62: representación de la función de transformación
A63: -5.0 | B63: =(0.08*A63^2)+ 0.8*A63+2 -> 0.000
A64: -4.5 | B64: 0.020
A65: -4.0 | B65: 0.080
A66: -3.5 | B66: 0.180
A67: -3.0 | B67: 0.320
A68: -2.5 | B68: 0.500
A69: -2.0 | B69: =(-0.08*A69^2)+1 -> 0.680
A70: -1.5 | B70: 0.820
A71: -1.0 | B71: 0.920
A72: -0.5 | B72: 0.980
A73: 0.0 | B73: 1.000
A74: 0.5 | B74: 0.980
A75: 1.0 | B75: 0.920
A76: 2.5 | B76: 0.500
A77: 3.0 | B77: =(0.08*A77^2)-0.8*A77+2 -> 0.320
A78: 3.5 | B78: =(0.08*A78^2)-0.8*A78+2 -> 0.180
A79: 4.0 | B79: =(0.08*A79^2)-0.8*A79+2 -> 0.080
A80: 4.5 | B80: =(0.08*A80^2)-0.8*A80+2 -> 0.020
A81: 5.0 | B81: =(0.08*A81^2)-0.8*A81+2 -> 0.000

Sheet 48-49
A1: nº de indicador: | B1: 48 | C1: función de transformación: | D1: CA=2E-4*I^2+4E-2*I+2 | E1: (-100<I<-50)
A2: Indicador: | B2: precipitaciones medias en el ámbito de referencia | D2: CA=-2E-4*I^2+1 | E2: (-50<I<50)
A3: fórmula del indicador | B3: precip.media - precip.media "sin"proyecto | D3: CA=2E-4*I^2-4E-2*I+2 | E3: 50<I<100
A4: unidad del indicador:
A5: rango de valores del indicador: | B5: -100 - 100 | C5: valor del indicador | D5: 80
A6: Tipo de indicador | B6: 2 (T=0,25) | C6: calidad ambiental | D6: =IF(D5<-100,"valor del indicador fuera de rango",IF(D5<=-50,0.0002*D5^2+0.04*D5+2,IF(D5<=50,-0.0002*D5^2+1,IF(D5<=100,0.0002*D5^2-0.04*D5+2,IF(D5>100,"valor del indicador fuera rango"))))) -> 0.080
A7: valor del indicador | B7: calidad ambiental | C7: representación de la función de transformación
A8: -100 | B8: =0.0002*A8^2+0.04*A8+2 -> 0.000
A9: -90 | B9: 0.020
A10: -80 | B10: 0.080
A11: -70 | B11: 0.180
A12: -60 | B12: 0.320
A13: -50 | B13: 0.500
A14: -30 | B14: =-0.0002*A14^2+1 -> 0.820
A15: -20 | B15: =-0.0002*A15^2+1 -> 0.920
A16: -10 | B16: 0.980
A17: 0 | B17: 1.000
A18: 10 | B18: 0.980
A19: 20 | B19: 0.920
A20: 30 | B20: =-0.0002*A20^2+1 -> 0.820
A21: 50 | B21: 0.500
A22: 60 | B22: =0.0002*A22^2-0.04*A22+2 -> 0.32
A23: 70 | B23: =0.0002*A23^2-0.04*A23+2 -> 0.18
A24: 80 | B24: =0.0002*A24^2-0.04*A24+2 -> 0.08
A25: 90 | B25: =0.0002*A25^2-0.04*A25+2 -> 0.02
A26: 100 | B26: =0.0002*A26^2-0.04*A26+2 -> 0
A29: nº de indicador: | B29: 49 | C29: función de transformación: | D29: CA=2E-4*I^2+4E-2*I+2 | E29: (-100<I<-50)
A30: Indicador: | B30: precipitaciones medias ponderadas según la superficie de zonas homogéneas | D30: CA=-2E-4*I^2+1 | E30: (-50<I<50)
A31: fórmula del indicador | D31: CA=2E-4*I^2-4E-2*I+2 | E31: 50<I<100
A32: unidad del indicador:
A33: rango de valores del indicador: | B33: -100 - 100 | C33: valor del indicador | D33: 90
A34: Tipo de indicador | B34: 2 (T=0,25) | C34: calidad ambiental | D34: =IF(D33<-100,"valor del indicador fuera de rango",IF(D33<=-50,0.0002*D33^2+0.04*D33+2,IF(D33<=50,-0.0002*D33^2+1,IF(D33<=100,0.0002*D33^2-0.04*D33+2,IF(D33>100,"valor del indicador fuera rango"))))) -> 0.020
A35: valor del indicador | B35: calidad ambiental | C35: representación de la función de transformación
A36: -100 | B36: =0.0002*A36^2+0.04*A36+2 -> 0.000
A37: -90 | B37: 0.020
A38: -80 | B38: 0.080
A39: -70 | B39: 0.180
A40: -60 | B40: 0.320
A41: -50 | B41: 0.500
A42: -40 | B42: =-0.0002*A42^2+1 -> 0.680
A43: -30 | B43: =-0.0002*A43^2+1 -> 0.820
A44: -20 | B44: 0.920
A45: -10 | B45: 0.980
A46: 0 | B46: 1.000
A47: 10 | B47: 0.980
A48: 20 | B48: =-0.0002*A48^2+1 -> 0.920
A49: 40 | B49: 0.680
A50: 50 | B50: 0.500
A51: 60 | B51: =0.0002*A51^2-0.04*A51+2 -> 0.32
A52: 70 | B52: =0.0002*A52^2-0.04*A52+2 -> 0.18
A53: 80 | B53: =0.0002*A53^2-0.04*A53+2 -> 0.08
A54: 90 | B54: =0.0002*A54^2-0.04*A54+2 -> 0.02
A55: 100 | B55: =0.0002*A55^2-0.04*A55+2 -> 0

Sheet 50-51
A1: nº de indicador: | B1: 50 | C1: función de transformación: | D1: CA=2e-2*I^2 | E1: 0<I<5
A2: Indicador: | B2: velocidad del viento | D2: CA=-2e-2*I^2+4e-1*I-1 | E2: 5<I<15
A3: fórmula del indicador | D3: CA=2e-2*I^2-8e-1*I+8 | E3: 15<I<20
A4: unidad del indicador: | B4: m s-1
A5: rango de valores del indicador: | B5: 0 - 20 | C5: valor del indicador | D5: 17
A6: Tipo de indicador | B6: 2 (T=0,25) | C6: calidad ambiental | D6: =IF(D5<=0,"valor del indicador fuera de rango",IF(D5<=5,0.02*D5^2,IF(D5<=15,-0.02*D5^2+0.4*D5-1,IF(D5<=20,0.02*D5^2-0.8*D5+8,"valor del indicador fuera rango")))) -> 0.180
A7: valor del indicador | B7: calidad ambiental | C7: representación de la función de transformación
A8: 0 | B8: =0.02*A8^2 -> 0.00
A9: 1 | B9: 0.02
A10: 2 | B10: 0.08
A11: 3 | B11: 0.18
A12: 4 | B12: 0.32
A13: 5 | B13: 0.50
A14: 6 | B14: =-0.02*A14^2+0.4*A14-1 -> 0.68
A15: 7 | B15: =-0.02*A15^2+0.4*A15-1 -> 0.82
A16: 8 | B16: 0.92
A17: 9 | B17: 0.98
A18: 10 | B18: 1.00
A19: 11 | B19: 0.98
A20: 12 | B20: 0.92
A21: 15 | B21: =-0.02*A21^2+0.4*A21-1 -> 0.50
A22: 16 | B22: =0.02*A22^2-0.8*A22+8 -> 0.32
A23: 17 | B23: =0.02*A23^2-0.8*A23+8 -> 0.18
A24: 18 | B24: =0.02*A24^2-0.8*A24+8 -> 0.08
A25: 20 | B25: =0.02*A25^2-0.8*A25+8 -> 0.00
A28: nº de indicador: | B28: 51 | C28: función de transformación: | D28: CA=-1,12e-2*I+1 | E28: 0<I<66,7
A29: Indicador: | B29: % de superficie donde se acumula aire ponderadoporel número de días de helada que provoca esta acumulación | D29: CA=2,25e-4*I^2-4,5e-2*I+2,25 | E29: 66,7<I<100
A30: fórmula del indicador | D30: CA=0 | E30: 100<I<200
A31: unidad del indicador:
A32: rango de valores del indicador: | B32: 0 - 200 | C32: valor del indicador | D32: 180
A33: Tipo de indicador | B33: 2 (T=0,25) | C33: calidad ambiental | D33: =IF(D32<0,"valor del indicador fuera de rango",IF(D32<=66.7,-0.0112*D32+1,IF(D32<=100,0.000225*D32^2-0.045*D32+2.25,IF(D32<=200,0,"valor del indicador fuera rango")))) -> 0.000
A34: valor del indicador | B34: calidad ambiental | C34: representación de la función de transformación
A35: 0 | B35: =-0.0112*A35+1 -> 1.000
A36: 10 | B36: 0.888
A37: 20 | B37: 0.776
A38: 30 | B38: 0.664
A39: 40 | B39: 0.552
A40: 50 | B40: 0.440
A41: 60 | B41: 0.328
A42: 66.7 | B42: 0.253
A43: 70 | B43: =0.000225*A43^2-0.045*A43+2.25 -> 0.203
A44: 80 | B44: =0.000225*A44^2-0.045*A44+2.25 -> 0.090
A45: 90 | B45: =0.000225*A45^2-0.045*A45+2.25 -> 0.023
A46: 100 | B46: =0.000225*A46^2-0.045*A46+2.25 -> 0.000
A47: 110 | B47: 0.000
A48: 120 | B48: 0.000
A49: 130 | B49: 0.000
A50: 140 | B50: 0.000
A51: 150 | B51: 0.000
A52: 160 | B52: 0.000
A53: 200 | B53: 0.000

Sheet 52-54
A1: nº de indicador: | B1: 52 | C1: función de transformación: | D1: CA=2e-4*I^2+4e-2*I+2 | E1: (-100<I<50)
A2: Indicador: | B2: radiación solar global | D2: CA=-2e-4*I^2+1 | E2: (-50<I<50)
A3: fórmula del indicador | D3: CA=2e-4*I^2+4e-2*I+2 | E3: 50<I<100
A4: unidad del indicador:
A5: rango de valores del indicador: | B5: -100 - 100 | C5: valor del indicador | D5: -30
A6: Tipo de indicador | C6: calidad ambiental | D6: =IF(D5<-100,"valor del indicador fuera de rango",IF(D5<=-50,0.0002*D5^2+0.04*D5+2,IF(D5<=50,-0.0002*D5^2+1,IF(D5<=100,0.0002*D5^2-0.04*D5+2,IF(D5>100,"valor del indicador fuera rango"))))) -> 0.820
A7: valor del indicador | B7: calidad ambiental | C7: representación de la función de transformación
A8: -100 | B8: =0.0002*A8^2+0.04*A8+2 -> 0.000
A9: -90 | B9: 0.020
A10: -80 | B10: 0.080
A11: -70 | B11: 0.180
A12: -60 | B12: 0.320
A13: -50 | B13: 0.500
A14: -40 | B14: =-0.0002*A14^2+1 -> 0.680
A15: -30 | B15: =-0.0002*A15^2+1 -> 0.820
A16: -20 | B16: 0.920
A17: -10 | B17: =-0.0002*A17^2+1 -> 0.980
A18: 0 | B18: 1.000
A19: 10 | B19: 0.980
A20: 20 | B20: =-0.0002*A20^2+1 -> 0.920
A21: 40 | B21: 0.680
A22: 50 | B22: =-0.0002*A22^2+1 -> 0.500
A23: 60 | B23: =0.0002*A23^2-0.04*A23+2 -> 0.320
A24: 70 | B24: =0.0002*A24^2-0.04*A24+2 -> 0.180
A25: 80 | B25: =0.0002*A25^2-0.04*A25+2 -> 0.080
A26: 90 | B26: =0.0002*A26^2-0.04*A26+2 -> 0.020
A27: 100 | B27: =0.0002*A27^2-0.04*A27+2 -> 0.000
A30: nº de indicador: | B30: 53 | C30: función de transformación: | D30: CA=2e-4*I^2+4e-2*I+2 | E30: (-100<I<50)
A31: Indicador: | B31: radiación solar ultravioleta | D31: CA=-2e-4*I^2+1 | E31: (-50<I<50)
A32: fórmula del indicador | D32: CA=2e-4*I^2+4e-2*I+2 | E32: 50<I<100
A33: unidad del indicador:
A34: rango de valores del indicador: | B34: -100 - 100 | C34: valor del indicador | D34: -30
A35: Tipo de indicador | B35: 2 (T=0,25) | C35: calidad ambiental | D35: =IF(D34<-100,"valor del indicador fuera de rango",IF(D34<=-50,0.0002*D34^2+0.04*D34+2,IF(D34<=50,-0.0002*D34^2+1,IF(D34<=100,0.0002*D34^2-0.04*D34+2,IF(D34>100,"valor del indicador fuera rango"))))) -> 0.820
A36: valor del indicador | B36: calidad ambiental | C36: representación de la función de transformación
A37: -100 | B37: =0.0002*A37^2+0.04*A37+2 -> 0.000
A38: -90 | B38: 0.020
A39: -80 | B39: 0.080
A40: -70 | B40: 0.180
A41: -60 | B41: 0.320
A42: -50 | B42: 0.500
A43: -40 | B43: =-0.0002*A43^2+1 -> 0.680
A44: -30 | B44: =-0.0002*A44^2+1 -> 0.820
A45: -20 | B45: 0.920
A46: -10 | B46: =-0.0002*A46^2+1 -> 0.980
A47: 0 | B47: 1.000
A48: 10 | B48: 0.980
A49: 20 | B49: =-0.0002*A49^2+1 -> 0.920
A50: 40 | B50: 0.680
A51: 50 | B51: =-0.0002*A51^2+1 -> 0.500
A52: 60 | B52: =0.0002*A52^2-0.04*A52+2 -> 0.320
A53: 70 | B53: =0.0002*A53^2-0.04*A53+2 -> 0.180
A54: 80 | B54: =0.0002*A54^2-0.04*A54+2 -> 0.080
A55: 90 | B55: =0.0002*A55^2-0.04*A55+2 -> 0.020
A56: 100 | B56: =0.0002*A56^2-0.04*A56+2 -> 0.000
A59: nº de indicador: | B59: 54 | C59: función de transformación: | D59: CA=2e-4*I^2+4e-2*I+2 | E59: (-100<I<50)
A60: Indicador: | B60: radiación solar ultravioleta | D60: CA=-2e-4*I^2+1 | E60: (-50<I<50)
A61: fórmula del indicador | D61: CA=2e-4*I^2+4e-2*I+2 | E61: 50<I<100
A62: unidad del indicador:
A63: rango de valores del indicador: | B63: -100 - 100 | C63: valor del indicador | D63: -30
A64: Tipo de indicador | B64: 2 (T=0,25) | C64: calidad ambiental | D64: =IF(D63<-100,"valor del indicador fuera de rango",IF(D63<=-50,0.0002*D63^2+0.04*D63+2,IF(D63<=50,-0.0002*D63^2+1,IF(D63<=100,0.0002*D63^2-0.04*D63+2,IF(D63>100,"valor del indicador fuera rango"))))) -> 0.820
A65: valor del indicador | B65: calidad ambiental | C65: representación de la función de transformación
A66: -100 | B66: =0.0002*A66^2+0.04*A66+2 -> 0.000
A67: -90 | B67: 0.020
A68: -80 | B68: 0.080
A69: -70 | B69: 0.180
A70: -60 | B70: 0.320
A71: -50 | B71: 0.500
A72: -40 | B72: =-0.0002*A72^2+1 -> 0.680
A73: -30 | B73: =-0.0002*A73^2+1 -> 0.820
A74: -20 | B74: 0.920
A75: -10 | B75: =-0.0002*A75^2+1 -> 0.980
A76: 0 | B76: 1.000
A77: 10 | B77: 0.980
A78: 20 | B78: =-0.0002*A78^2+1 -> 0.920
A79: 40 | B79: 0.680
A80: 50 | B80: =-0.0002*A80^2+1 -> 0.500
A81: 60 | B81: =0.0002*A81^2-0.04*A81+2 -> 0.320
A82: 70 | B82: =0.0002*A82^2-0.04*A82+2 -> 0.180
A83: 80 | B83: =0.0002*A83^2-0.04*A83+2 -> 0.080
A84: 90 | B84: =0.0002*A84^2-0.04*A84+2 -> 0.020
A85: 100 | B85: =0.0002*A85^2-0.04*A85+2 -> 0.000

Sheet 55
A1: nº de indicador: | B1: 55 | C1: función de transformación: | D1: CA=I | E1: 0<I<1
A2: Indicador: | B2: Aptitud del clima para los usos principales del territorio (semicualitativo) | D2: CA=1 | E2: 1<I<4
A3: fórmula del indicador
A4: unidad del indicador:
A5: rango de valores del indicador: | B5: 0 - 4 | C5: valor del indicador | D5: 3
A6: Tipo de indicador | B6: 3 (T=0,50) | C6: calidad ambiental | D6: =IF(D5<0,"valor del indicador fuera de rango",IF(D5<=1,D5,IF(D5<=4,(1),"valor del indicador fuera rango"))) -> 1.000
A7: valor del indicador | B7: calidad ambiental | C7: representación de la función de transformación
A8: 0.0 | B8: =+A8 -> 0.000
A9: =+A8+0.2 -> 0.2 | B9: =+A9 -> 0.200
A10: =+A9+0.2 -> 0.4 | B10: =+A10 -> 0.400
A11: 0.6 | B11: =+A11 -> 0.600
A12: 0.8 | B12: =+A12 -> 0.800
A13: 1.0 | B13: =1 -> 1.000
A14: 1.2 | B14: =1 -> 1.000
A15: 1.4 | B15: =1 -> 1.000
A16: 1.6 | B16: =1 -> 1.000
A17: 1.8 | B17: =1 -> 1.000
A18: 2.0 | B18: =1 -> 1.000
A19: 2.2 | B19: =1 -> 1.000
A20: 2.4 | B20: =1 -> 1.000
A21: 2.6 | B21: =1 -> 1.000
A22: 2.8 | B22: =1 -> 1.000
A23: 3.0 | B23: =1 -> 1.000
A24: 3.2 | B24: =1 -> 1.000
A25: 3.4 | B25: =1 -> 1.000
A26: 3.6 | B26: =1 -> 1.000
A27: 4.0 | B27: =1 -> 1.000
